fUSD/lending_fUSD_20250728
["ID","MTS","AMOUNT","RATE_DAILY","PERIOD"]
[375786531,1753745449187,-612.04,0.00017654,2]
[375786532,1753745449198,-400.0,0.00017654,2]
[375786533,1753745449207,-400.0,0.00017654,2]
[375786534,1753745449217,-799.65,0.00017654,2]
[375786535,1753745449227,-400.0,0.00017654,2]
[375786536,1753745449237,-400.0,0.00017654,2]
[375786537,1753745449246,-675.43,0.00017654,2]
[375786538,1753745449255,-400.0,0.00017654,2]
[375786539,1753745449265,-598.91,0.00017654,2]
[375786540,1753745449275,-592.91,0.00017654,2]
[375786541,1753745449285,-400.0,0.00017654,2]
[375786542,1753745449295,-400.0,0.00017654,2]
[375786543,1753745449306,-514.79,0.00017654,2]
[375786544,1753745449317,-400.0,0.00017654,2]
[375786545,1753745449327,-505.04,0.00017654,2]
[375786546,1753745449337,-419.6,0.00017654,2]
[375786547,1753745449346,-400.0,0.00017654,2]
[375786548,1753745449356,-542.09,0.00017654,2]
[375786549,1753745449366,-400.0,0.00017654,2]
[375786550,1753745449376,-400.0,0.00017654,2]
[375786551,1753745449386,-603.79,0.00017654,2]
[375786552,1753745449395,-1603.24,0.00017654,2]
[375786553,1753745449404,-625.22,0.00017654,2]
[375786554,1753745449414,-590.21,0.00017654,2]
[375786555,1753745449425,-769.16,0.00017654,2]
[375786556,1753745449435,-400.0,0.00017654,2]
[375786557,1753745449445,-400.0,0.00017654,2]
[375786558,1753745449455,-400.0,0.00017654,2]
[375786559,1753745449465,-517.14,0.00017654,2]
[375786560,1753745449476,-6695.73,0.00017654,2]
[375786561,1753745449488,-427.61,0.00017654,2]
[375786562,1753745449498,-562.92,0.00017654,2]
[375786563,1753745449508,-469.87,0.00017654,2]
[375786564,1753745449517,-400.0,0.00017654,2]
[375786565,1753745449529,-687.76,0.00017654,2]
[375786566,1753745449539,-400.0,0.00017654,2]
[375786567,1753745449549,-1025.98,0.00017654,2]
[375786568,1753745449558,-546.86,0.00017654,2]
[375786569,1753745449569,-520.68,0.00017654,2]
[375786570,1753745449579,-400.0,0.00017654,2]
[375786571,1753745449588,-506.67,0.00017654,2]
[375786572,1753745449598,-1076.58,0.00017654,2]
[375786573,1753745449608,-490.72,0.00017654,2]
[375786574,1753745449619,-489.39,0.00017654,2]
[375786575,1753745449630,-2041.14,0.00017654,2]
[375786576,1753745449640,-400.0,0.00017654,2]
[375786577,1753745449650,-573.23,0.00017654,2]
[375786578,1753745449660,-400.0,0.00017654,2]
[375786579,1753745449670,-605.39,0.00017654,2]
[375786580,1753745449681,-400.0,0.00017654,2]
[375786581,1753745449692,-400.0,0.00017654,2]
[375786582,1753745449702,-1870.3,0.00017654,2]
[375786583,1753745449712,-882.89,0.00017654,2]
[375786584,1753745449724,-410.61,0.00017654,2]
[375786585,1753745449734,-869.42,0.00017654,2]
[375786586,1753745449744,-1511.23,0.00017654,2]
[375786587,1753745449754,-400.0,0.00017654,2]
[375786588,1753745449764,-1358.97,0.00017654,2]
[375786589,1753745449777,-246.07633594,0.00017654,2]
[375786590,1753745449788,-400.0,0.00017654,2]
[375786591,1753745449799,-490.9,0.00017654,2]
[375786592,1753745449810,-2442.99,0.00017654,2]
[375786593,1753745449821,-675.74,0.00017654,2]
[375786594,1753745449831,-608.86,0.00017654,2]
[375786595,1753745449841,-2001.64,0.00017654,2]
[375786596,1753745449854,-672.09,0.00017654,2]
[375786597,1753745449864,-400.0,0.00017654,2]
[375786598,1753745449874,-1885.51,0.00017654,2]
[375786599,1753745449884,-2216.08,0.00017654,2]
[375786600,1753745449894,-400.0,0.00017654,2]
[375786601,1753745449903,-651.67,0.00017654,2]
[375786602,1753745449913,-537.92,0.00017654,2]
[375786603,1753745449923,-2065.84,0.00017654,2]
[375786604,1753745449933,-23943.95,0.00017654,2]
[375786605,1753745449943,-731.04,0.00017654,2]
[375786606,1753745449953,-633.73,0.00017654,2]
[375786607,1753745449963,-1775.78,0.00017654,2]
[375786608,1753745449972,-400.0,0.00017654,2]
[375786609,1753745449982,-2789.33,0.00017654,2]
[375786610,1753745449991,-773.77,0.00017654,2]
[375786611,1753745450001,-630.96,0.00017654,2]
[375786612,1753745450011,-3432.03,0.00017654,2]
[375786613,1753745450021,-2771.8,0.00017654,2]
[375786614,1753745450030,-641.95,0.00017654,2]
[375786615,1753745450040,-481.86,0.00017654,2]
[375786616,1753745450050,-1169.52,0.00017654,2]
[375786617,1753745450060,-513.84,0.00017654,2]
[375786618,1753745450069,-400.0,0.00017654,2]
[375786619,1753745450079,-400.0,0.00017654,2]
[375786620,1753745450089,-400.0,0.00017654,2]
[375786621,1753745450098,-1148.99,0.00017654,2]
[375786622,1753745450108,-400.0,0.00017654,2]
[375786623,1753745450118,-482.47,0.00017654,2]
[375786624,1753745450129,-867.19,0.00017654,2]
[375786625,1753745450139,-418.69,0.00017654,2]
[375786626,1753745450149,-675.2,0.00017654,2]
[375786627,1753745450159,-400.0,0.00017654,2]
[375786628,1753745450169,-923.51,0.00017654,2]
[375786629,1753745450180,-1708.33,0.00017654,2]
[375786630,1753745450189,-400.0,0.00017654,2]
[375786631,1753745450199,-2017.85,0.00017654,2]
[375786632,1753745450209,-967.82,0.00017654,2]
[375786633,1753745450218,-413.28,0.00017654,2]
[375786634,1753745450228,-400.0,0.00017654,2]
[375786635,1753745450238,-187.68,0.00017654,2]
[375786636,1753745450247,-581.57,0.00017654,2]
[375786637,1753745450258,-1616.11,0.00017654,2]
[375786638,1753745450268,-1138.01,0.00017654,2]
[375786639,1753745450278,-400.0,0.00017654,2]
[375786640,1753745450287,-470.95,0.00017654,2]
[375786641,1753745450296,-1043.66183082,0.0001768,2]
[375786642,1753745450306,-1551.85766946,0.00017693,2]
[375786643,1753745450316,-920.0,0.00017695,2]
[375786644,1753745450326,-154.48314578,0.00017698,2]
[375786645,1753745450336,-2300.0,0.000177,6]
[375786646,1753745450345,-568.17,0.00017706,2]
[375786647,1753745450355,-400.0,0.00017706,2]
[375786648,1753745450365,-400.0,0.00017706,2]
[375786649,1753745450374,-2358.22,0.00017706,2]
[375786650,1753745450383,-930.91,0.00017706,2]
[375786651,1753745450393,-566.09,0.00017706,2]
[375786652,1753745450402,-1073.14,0.00017706,2]
[375786653,1753745450412,-400.0,0.00017706,2]
[375786654,1753745450422,-445.39,0.00017706,2]
[375786655,1753745450432,-459.94,0.00017706,2]
[375786656,1753745450441,-607.37,0.00017706,2]
[375786657,1753745450451,-811.73,0.00017706,2]
[375786658,1753745450461,-914.51,0.00017706,2]
[375786659,1753745450470,-479.05,0.00017706,2]
[375786660,1753745450480,-1003.49,0.00017706,2]
[375786661,1753745450490,-576.06,0.00017706,2]
[375786662,1753745450500,-2974.79,0.00017706,2]
[375786663,1753745450509,-549.94,0.00017706,2]
[375786664,1753745450519,-1976.62,0.00017706,2]
[375786665,1753745450528,-721.43,0.00017706,2]
[375786666,1753745450538,-1074.84,0.00017706,2]
[375786667,1753745450548,-400.0,0.00017706,2]
[375786668,1753745450557,-401.45,0.00017706,2]
[375786669,1753745450567,-1318.12,0.00017706,2]
[375786670,1753745450577,-682.73,0.00017706,2]
[375786671,1753745450587,-400.0,0.00017706,2]
[375786672,1753745450596,-446.5,0.00017706,2]
[375786673,1753745450606,-858.54,0.00017706,2]
[375786674,1753745450615,-400.0,0.00017706,2]
[375786675,1753745450625,-400.0,0.00017706,2]
[375786676,1753745450635,-400.0,0.00017706,2]
[375786677,1753745450644,-530.13,0.00017706,2]
[375786678,1753745450653,-1749.19,0.00017706,2]
[375786679,1753745450663,-400.0,0.00017707,2]
[375786680,1753745450674,-400.0,0.00017707,2]
[375786681,1753745450684,-400.0,0.00017707,2]
[375786682,1753745450693,-612.41,0.00017707,2]
[375786683,1753745450704,-429.78,0.00017707,2]
[375786684,1753745450713,-474.22,0.00017707,2]
[375786685,1753745450723,-450.94,0.00017707,2]
[375786686,1753745450733,-400.0,0.00017707,2]
[375786687,1753745450742,-475.36,0.00017707,2]
[375786688,1753745450752,-599.25,0.00017707,2]
[375786689,1753745450762,-450.85,0.00017707,2]
[375786690,1753745450775,-400.0,0.00017707,2]
[375786691,1753745450785,-400.0,0.00017707,2]
[375786692,1753745450795,-518.4,0.00017707,2]
[375786693,1753745450804,-460.92,0.00017707,2]
[375786694,1753745450814,-532.59,0.00017707,2]
[375786695,1753745450824,-400.0,0.00017707,2]
[375786696,1753745450834,-400.0,0.00017707,2]
[375786697,1753745450847,-400.0,0.00017707,2]
[375786698,1753745450857,-400.0,0.00017707,2]
[375786699,1753745450867,-400.0,0.00017707,2]
[375786700,1753745450877,-482.43,0.00017707,2]
[375786701,1753745450886,-400.0,0.00017707,2]
[375786702,1753745450896,-400.0,0.00017707,2]
[375786703,1753745450905,-400.0,0.00017707,2]
[375786704,1753745450915,-442.26,0.00017707,2]
[375786705,1753745450925,-487.72,0.00017707,2]
[375786706,1753745450935,-400.0,0.00017707,2]
[375786707,1753745450945,-400.0,0.00017707,2]
[375786708,1753745450954,-548.77,0.00017707,2]
[375786709,1753745450963,-400.0,0.00017707,2]
[375786710,1753745450973,-508.29220737,0.00017707,2]
[375786711,1753745450983,-400.0,0.00017707,2]
[375786712,1753745450993,-400.0,0.00017707,2]
[375786713,1753745451003,-400.0,0.00017707,2]
[375786714,1753745451012,-400.0,0.00017707,2]
[375786715,1753745451022,-400.0,0.00017707,2]
[375786716,1753745451031,-400.0,0.00017707,2]
[375786717,1753745451042,-400.0,0.00017707,2]
[375786718,1753745451051,-227.39,0.00017707,2]
[375786719,1753745451061,-546.5,0.00017707,2]
[375786720,1753745451070,-400.0,0.00017707,2]
[375786721,1753745451079,-400.0,0.00017707,2]
[375786722,1753745451089,-583.02,0.00017707,2]
[375786723,1753745451099,-400.0,0.00017707,2]
[375786724,1753745451109,-400.0,0.00017707,2]
[375786725,1753745451118,-400.0,0.00017707,2]
[375786726,1753745451127,-400.0,0.00017707,2]
[375786727,1753745451136,-436.24,0.00017707,2]
[375786728,1753745451146,-209.59029707,0.00017707,2]
[375786729,1753745451156,-400.0,0.00017707,2]
[375786730,1753745451165,-400.0,0.00017707,2]
[375786731,1753745451176,-400.0,0.00017707,2]
[375786732,1753745451185,-581.56,0.00017707,2]
[375786733,1753745451195,-651.97,0.00017707,2]
[375786734,1753745451205,-400.0,0.00017707,2]
[375786735,1753745451214,-400.0,0.00017707,2]
[375786736,1753745451223,-547.8,0.00017707,2]
[375786737,1753745451233,-400.0,0.00017707,2]
[375786738,1753745451242,-545.11,0.00017707,2]
[375786739,1753745451252,-400.0,0.00017707,2]
[375786740,1753745451262,-400.0,0.00017707,2]
[375786741,1753745451275,-607.89,0.00017707,2]
[375786742,1753745451286,-541.96,0.00017707,2]
[375786743,1753745451296,-500.0,0.00017707,2]
[375786744,1753745451307,-400.0,0.00017707,2]
[375786745,1753745451317,-1112.83,0.00017707,2]
[375786746,1753745451327,-400.0,0.00017707,2]
[375786747,1753745451337,-400.0,0.00017707,2]
[375786748,1753745451346,-715.79,0.00017707,2]
[375786749,1753745451356,-400.0,0.00017707,2]
[375786750,1753745451366,-400.0,0.00017707,2]
[375786751,1753745451376,-637.58,0.00017707,2]
[375786752,1753745451386,-400.0,0.00017707,2]
[375786753,1753745451396,-1109.41,0.00017707,2]
[375786754,1753745451405,-556.11,0.00017707,2]
[375786755,1753745451415,-914.88,0.00017707,2]
[375786756,1753745451426,-2023.75,0.00017707,2]
[375786757,1753745451435,-707.33,0.00017707,2]
[375786758,1753745451445,-2105.76,0.00017707,2]
[375786759,1753745451456,-413.15,0.00017707,2]
[375786760,1753745451465,-671.84,0.00017707,2]
[375786761,1753745451475,-1366.93,0.00017707,2]
[375786762,1753745451486,-500.0,0.00017707,2]
[375786763,1753745451496,-400.0,0.00017707,2]
[375786764,1753745451505,-400.0,0.00017707,2]
[375786765,1753745451515,-1464.88,0.00017707,2]
[375786766,1753745451525,-2208.17,0.00017707,2]
[375786767,1753745451534,-400.0,0.00017707,2]
[375786768,1753745451545,-613.13,0.00017707,2]
[375786769,1753745451555,-409.74,0.00017707,2]
[375786770,1753745451565,-400.0,0.00017707,2]
[375786771,1753745451575,-1273.28,0.00017707,2]
[375786772,1753745451585,-400.0,0.00017707,2]
[375786773,1753745451595,-524.96,0.00017707,2]
[375786774,1753745451604,-400.0,0.00017707,2]
[375786775,1753745451614,-400.0,0.00017707,2]
[375786776,1753745451624,-483.5,0.00017707,2]
[375786777,1753745451633,-816.35,0.00017707,2]
[375786778,1753745451643,-400.0,0.00017707,2]
[375786779,1753745451654,-400.0,0.00017707,2]
[375786780,1753745451664,-400.0,0.00017707,2]
[375786781,1753745451676,-615.46,0.00017707,2]
[375786782,1753745451685,-1293.27,0.00017707,2]
[375786783,1753745451695,-400.0,0.00017707,2]
[375786784,1753745451705,-2515.65,0.00017707,2]
[375786785,1753745451714,-553.36,0.00017707,2]
[375786786,1753745451724,-500.0,0.00017707,2]
[375786787,1753745451734,-884.25,0.00017707,2]
[375786788,1753745451743,-659.55,0.00017707,2]
[375786789,1753745451753,-549.43,0.00017707,2]
[375786790,1753745451762,-400.0,0.00017707,2]
[375786791,1753745451776,-434.47,0.00017707,2]
[375786792,1753745451786,-1379.76,0.00017707,2]
[375786793,1753745451795,-400.0,0.00017707,2]
[375786794,1753745451807,-922.08,0.00017707,2]
[375786795,1753745451817,-2148.7,0.00017707,2]
[375786796,1753745451826,-635.64,0.00017707,2]
[375786797,1753745451836,-944.87,0.00017707,2]
[375786798,1753745451846,-692.2,0.00017707,2]
[375786799,1753745451855,-400.0,0.00017707,2]
[375786800,1753745451864,-400.0,0.00017707,2]
[375786801,1753745451873,-1029.76,0.00017707,2]
[375786802,1753745451883,-400.0,0.00017708,2]
[375786803,1753745451893,-408.52,0.00017708,2]
[375786804,1753745451902,-400.0,0.00017708,2]
[375786805,1753745451911,-400.0,0.00017708,2]
[375786806,1753745451920,-520.96,0.00017708,2]
[375786807,1753745451931,-400.0,0.00017708,2]
[375786808,1753745451940,-400.0,0.00017708,2]
[375786809,1753745451950,-400.0,0.00017708,2]
[375786810,1753745451959,-400.0,0.00017708,2]
[375786811,1753745451969,-400.0,0.00017708,2]
[375786812,1753745451978,-400.0,0.00017708,2]
[375786813,1753745451988,-997.64,0.00017708,2]
[375786814,1753745451997,-599.95,0.00017708,2]
[375786815,1753745452007,-400.0,0.00017708,2]
[375786816,1753745452016,-724.36,0.00017708,2]
[375786817,1753745452025,-400.0,0.00017708,2]
[375786818,1753745452035,-853.08,0.00017708,2]
[375786819,1753745452044,-10000.0,0.00017708,2]
[375786820,1753745452054,-1281.06,0.00017708,2]
[375786821,1753745452064,-469.6,0.00017708,2]
[375786822,1753745452074,-1388.55,0.00017708,2]
[375786823,1753745452083,-981.51,0.00017708,2]
[375786824,1753745452093,-2557.83,0.00017708,2]
[375786825,1753745452102,-804.94,0.00017708,2]
[375786826,1753745452112,-9196.69,0.00017708,2]
[375786827,1753745452121,-732.71,0.00017708,2]
[375786828,1753745452131,-1027.81,0.00017708,2]
[375786829,1753745452140,-685.8782802,0.00017754,2]
[375786830,1753745452151,-400.0,0.00017761,2]
[375786831,1753745452161,-400.0,0.00017761,2]
[375786832,1753745452170,-400.0,0.00017762,2]
[375786833,1753745452181,-400.0,0.00017762,2]
[375786834,1753745452190,-400.0,0.00017762,2]
[375786835,1753745452200,-288.34855427,0.00017762,2]
[375786836,1753745452210,-433.7,0.00017762,2]
[375786837,1753745452219,-400.0,0.00017762,2]
[375786838,1753745452380,-400.0,0.00017762,2]
[375786839,1753745452391,-400.0,0.00017762,2]
[375786840,1753745452401,-400.0,0.00017762,2]
[375786841,1753745452410,-400.0,0.00017762,2]
[375786842,1753745452420,-400.0,0.00017762,2]
[375786843,1753745452430,-400.0,0.00017762,2]
[375786844,1753745452440,-400.0,0.00017762,2]
[375786845,1753745452450,-400.0,0.00017762,2]
[375786846,1753745452459,-400.0,0.00017762,2]
[375786847,1753745452469,-439.45,0.00017762,2]
[375786848,1753745452479,-400.0,0.00017762,2]
[375786849,1753745452488,-400.0,0.00017762,2]
[375786850,1753745452498,-400.0,0.00017762,2]
[375786851,1753745452508,-400.0,0.00017762,2]
[375786852,1753745452518,-544.55,0.00017762,2]
[375786853,1753745452528,-400.0,0.00017762,2]
[375786854,1753745452538,-400.0,0.00017762,2]
[375786855,1753745452548,-400.0,0.00017762,2]
[375786856,1753745452558,-898.24,0.00017762,2]
[375786857,1753745452568,-400.0,0.00017762,2]
[375786858,1753745452578,-569.13,0.00017762,2]
[375786859,1753745452587,-400.0,0.00017762,2]
[375786860,1753745452598,-400.0,0.00017762,2]
[375786861,1753745452608,-400.0,0.00017762,2]
[375786862,1753745452617,-564.42,0.00017762,2]
[375786863,1753745452627,-815.95,0.00017762,2]
[375786864,1753745452636,-400.0,0.00017762,2]
[375786865,1753745452646,-400.0,0.00017762,2]
[375786866,1753745452656,-448.47,0.00017762,2]
[375786867,1753745452667,-406.3,0.00017762,2]
[375786868,1753745452677,-517.63,0.00017762,2]
[375786869,1753745452687,-400.0,0.00017762,2]
[375786870,1753745452697,-400.0,0.00017762,2]
[375786871,1753745452707,-771.78,0.00017762,2]
[375786872,1753745452716,-400.0,0.00017762,2]
[375786873,1753745452726,-456.06,0.00017762,2]
[375786874,1753745452736,-740.43,0.00017762,2]
[375786875,1753745452746,-711.25,0.00017762,2]
[375786876,1753745452756,-613.72,0.00017762,2]
[375786877,1753745452768,-910.19,0.00017762,2]
[375786878,1753745452778,-518.42,0.00017762,2]
[375786879,1753745452788,-463.17,0.00017762,2]
[375786880,1753745452798,-400.0,0.00017762,2]
[375786881,1753745452808,-1001.87,0.00017762,2]
[375786882,1753745452818,-502.08,0.00017762,2]
[375786883,1753745452828,-671.17,0.00017762,2]
[375786884,1753745452840,-400.0,0.00017762,2]
[375786885,1753745452850,-400.0,0.00017762,2]
[375786886,1753745452860,-400.0,0.00017762,2]
[375786887,1753745452870,-1479.15,0.00017762,2]
[375786888,1753745452879,-400.0,0.00017762,2]
[375786889,1753745452889,-670.48,0.00017762,2]
[375786890,1753745452899,-1545.61,0.00017762,2]
[375786891,1753745452909,-481.39,0.00017762,2]
[375786892,1753745452919,-862.05,0.00017762,2]
[375786893,1753745452930,-726.14,0.00017762,2]
[375786894,1753745452940,-400.0,0.00017762,2]
[375786895,1753745452949,-469.65,0.00017762,2]
[375786896,1753745452959,-2708.55,0.00017762,2]
[375786897,1753745452970,-451.99,0.00017762,2]
[375786898,1753745452979,-1241.12,0.00017762,2]
[375786899,1753745452989,-400.0,0.00017762,2]
[375786900,1753745452998,-400.0,0.00017762,2]
[375786901,1753745453008,-400.0,0.00017762,2]
[375786902,1753745453018,-422.07,0.00017762,2]
[375786903,1753745453028,-458.02,0.00017762,2]
[375786904,1753745453037,-1271.72,0.00017762,2]
[375786905,1753745453047,-400.0,0.00017762,2]
[375786906,1753745453058,-4669.36,0.00017762,2]
[375786907,1753745453068,-3293.35,0.00017762,2]
[375786908,1753745453079,-1001.26,0.00017764,2]
[375786909,1753745453089,-400.0,0.00017764,2]
[375786910,1753745453099,-1800.39,0.00017764,2]
[375786911,1753745453109,-151.0,0.0001777,2]
[375786912,1753745453119,-231.0,0.0001778,2]
[375786913,1753745453129,-500.0,0.00017799,2]
[375786914,1753745453139,-500.0,0.00017799,2]
[375786915,1753745453148,-3500.0,0.000178,6]
[375786916,1753745453159,-154.48314578,0.0001782,2]
[375786917,1753745453171,-160.15340356,0.00017827,2]
[375786918,1753745453182,-300.965,0.00017852,2]
[375786919,1753745453193,-1043.66183082,0.00017855,2]
[375786920,1753745453203,-165.14,0.00017868,2]
[375786921,1753745453215,-168.0,0.00017871,2]
[375786922,1753745453224,-153.04,0.00017877,2]
[375786923,1753745453234,-165.18,0.00017877,2]
[375786924,1753745453244,-168.0,0.00017883,2]
[375786925,1753745453254,-1000.0,0.00017899,2]
[375786926,1753745453264,-5390.66524372,0.000179,2]
[375786927,1753745453738,-317.27075628,0.000179,2]
[375786928,1753745453748,-10.11396553,0.000179,6]
[375786929,1753745453771,-934.85752373,0.000179,6]
[375786930,1753745453783,-3755.02851074,0.000179,6]
[375786931,1753745453793,-2680.32143914,0.00017908,2]
[375786932,1753745453804,-9739.12129807,0.00017908,2]
[375786933,1753745454774,1000.0,0.00027397,120]
[375786934,1753745455007,-368.77599679,0.0001738,2]
[375786935,1753745455782,-31.22400321,0.0001738,2]
[375786936,1753745455792,-455.0,0.0001738,2]
[375786937,1753745455802,-97.3845773,0.0001738,2]
[375786938,1753745467983,3545.636384,7.945e-05,2]
[375786939,1753745595656,2000.0,0.00027397,120]
[375786940,1753745600457,500.0,0.00027397,120]
[375786941,1753745718481,401.44,0.0002739,120]
[375786942,1753745750487,1061.8,0.00027397,120]
[375786943,1753745971492,400.0,0.00027397,120]
[375786944,1753745986213,400.0,0.00027397,120]
[375786945,1753746000236,400.0,0.00027397,120]
[375786946,1753746014886,400.0,0.00027397,120]
[375786947,1753746028745,360.85,0.00027397,120]
[375786948,1753746051983,218.42239299,0.00015613,2]
[375786949,1753746091046,321.90843506,0.00015613,2]
[375786950,1753746132110,273.6221698,0.00015613,2]
[375786951,1753746172553,232.57884433,0.00015613,2]
[375786952,1753746194619,2105.553231,0.00026223,120]
[375786953,1753746201168,626.65792,0.00026723,120]
[375786954,1753746214563,197.69201768,0.00015613,2]
[375786957,1753746255941,168.03821503,0.00015613,2]
[375786958,1753746342897,194.89447364,0.00015613,2]
[375786959,1753746388930,505.0,0.00014932,2]
[375786970,1753746568786,507.0,0.00014932,2]
[375786983,1753746632194,-505.0,0.00016118,3]
[375786985,1753746632205,-688.14,0.0001618,2]
[375786987,1753746632216,-1449.61,0.00016341,5]
[375786989,1753746632227,-14.56866133,0.00016341,2]
[375786990,1753746632240,-502.80133867,0.00016341,2]
[375786991,1753746632250,-66.89065331,0.00016398,2]
[375786992,1753746632340,-98.26934669,0.00016398,2]
[375786993,1753746632350,-154.96,0.00016485,2]
[375786994,1753746632360,-250.0,0.00016511,2]
[375786995,1753746632370,-154.96,0.0001654,2]
[375786996,1753746632380,-154.96,0.00016595,2]
[375786997,1753746632390,-154.96,0.0001665,2]
[375786998,1753746632402,-1000.0,0.00016655,2]
[375786999,1753746632412,-180.0,0.00016693,7]
[375787000,1753746632422,-154.91,0.00016717,2]
[375787001,1753746632432,-177.12,0.00016757,2]
[375787002,1753746632443,-150.0,0.00016841,2]
[375787003,1753746632453,-150.0,0.00016841,2]
[375787004,1753746632464,-150.0,0.00016841,2]
[375787005,1753746632474,-150.0,0.00016841,2]
[375787006,1753746632484,-150.0,0.00016841,2]
[375787007,1753746632494,-217.47,0.00016844,2]
[375787008,1753746632504,-231.28369723,0.00016968,2]
[375787009,1753746632514,-600.0,0.00017018,2]
[375787010,1753746632524,-353.62,0.00017018,2]
[375787011,1753746632534,-500.0,0.00017164,2]
[375787012,1753746632543,-600.0,0.00017164,2]
[375787013,1753746632554,-600.0,0.00017164,2]
[375787014,1753746632564,-505.0,0.00017304,5]
[375787016,1753746632574,-168.0,0.00017314,2]
[375787018,1753746632584,-1459.84149549,0.00017332,2]
[375787020,1753746632594,-163.18352029,0.00017333,2]
[375787022,1753746632604,-624.320698,0.0001737,2]
[375787024,1753746632614,-759.8,0.0001738,2]
[375787025,1753746632624,-1871.04,0.0001738,2]
[375787026,1753746632634,-1385.29,0.0001738,2]
[375787027,1753746632644,-2239.41,0.0001738,2]
[375787029,1753746632654,-2247.74,0.0001738,2]
[375787030,1753746632664,-636.4,0.0001738,2]
[375787031,1753746632674,-3465.97,0.0001738,2]
[375787032,1753746632686,-1179.88,0.0001738,2]
[375787033,1753746632696,-861.56,0.0001738,2]
[375787034,1753746632706,-1699.3,0.0001738,2]
[375787035,1753746632716,-1000.0,0.00017386,2]
[375787036,1753746632725,-6181.44649451,0.00017399,2]
[375787037,1753746632738,-1607.77391441,0.00017399,2]
[375787038,1753746632747,-1471.3982067,0.000174,2]
[375787039,1753746632776,-427.92221897,0.000174,2]
[375787040,1753746632787,-913.84251163,0.000174,2]
[375787041,1753746632797,-5116.17256985,0.000174,2]
[375787042,1753746632807,-701.94275682,0.00017403,2]
[375787043,1753746632816,-743.14366084,0.00017404,2]
[375787044,1753746632833,-848.6229296,0.00017404,2]
[375787045,1753746632844,-510.3607,0.00017404,2]
[375787189,1753746640465,-209.91299483,0.00015856,2]
[375787190,1753746640475,-154.48314578,0.00017331,2]
[375787191,1753746640484,-459.12114166,0.00017404,2]
[375787192,1753746640565,-591.45,0.00017404,2]
[375787773,1753746646572,-1963.47413775,0.00017404,2]
[375787775,1753746646582,-2172.57440405,0.0001741,2]
[375787778,1753746646595,-338.30984339,0.0001741,2]
[375787780,1753746646604,-2510.88424744,0.0001741,2]
[375787782,1753746646614,-1505.84629294,0.00017415,2]
[375787784,1753746646623,-2828.43197123,0.0001742,2]
[375787786,1753746646635,-4960.78843769,0.0001742,2]
[375787788,1753746646645,-105.65751499,0.0001742,2]
[375787790,1753746646657,-2447.13085106,0.0001742,2]
[375788262,1753746688466,201.14,0.00013699,2]
[375788263,1753746688613,516.0,0.00014932,2]
[375788265,1753746740246,169.90836248,0.00019425,30]
[375788266,1753746903189,429.66,0.00024896,120]
[375788267,1753746940162,750.79671234,0.00027397,120]